Cogmind - Beta 13 @@@ ROGUE MODE // 2024.04.04 @ 16:19:46 Player: Aa1k Result: Self-destructed Performance ------------- Evolutions (1) 500 Regions Visited (3) 600 Robots Destroyed (10) 50 Value Destroyed (352) 352 Prototype IDs (0) 0 Alien Tech Used (0) 0 Bonus (0) 0 TOTAL SCORE: 1502 Bonus ------- None Cogmind --------- Core Integrity 17/400 Matter 254/300 Energy 66/265 System Corruption 0% Temperature Cool (18) Movement Core (1550) Ox30 Location -9/Mines Parts ------- > --- POWER (1) -------- Improved Ion Engine > --- PROPULSION (2) --- (None) > --- UTILITY (3) ------ Huge Storage Unit > --- WEAPON (3) ------- EM Shotgun Small Laser > --- INVENTORY (25) --- Improved Ion Engine Improved Ion Engine Improved Ion Engine Light Treads Light Treads Aluminum Leg Aluminum Leg Compact Wheel Compact Wheel VTOL Module VTOL Module VTOL Module VTOL Module Heat Sink Heat Sink Peak State ------------ > --- POWER ------------ Improved Ion Engine > --- PROPULSION ------- Compact Wheel Compact Wheel > --- UTILITY ---------- Huge Storage Unit Improved Targeting Computer Hardened Light Armor Plating > --- WEAPON ----------- EM Pulse Gun EM Pulse Gun Heavy Assault Rifle > --- INVENTORY -------- Improved Ion Engine Improved Ion Engine Improved Ion Engine Light Treads Light Treads Aluminum Leg Aluminum Leg Compact Wheel Compact Wheel Compact Wheel VTOL Module VTOL Module VTOL Module VTOL Module Weight Redist. System Light Armor Plating EM Shotgun EM Shotgun EM Shotgun EM Shotgun Medium Laser Small Laser [Rating: 16] Favorites ----------- Power Improved Ion Engine Engine Improved Ion Engine Propulsion Compact Wheel Wheel Compact Wheel Utility Huge Storage Unit Device Weight Redist. System Storage Huge Storage Unit Processor Improved Targeting Computer Protection Hardened Light Armor Plating Weapon EM Pulse Gun Energy Gun EM Pulse Gun Energy Cannon Particle Cannon Ballistic Gun Heavy Assault Rifle Build | -11 -10 -9 -9 ------- Run | Yrd Mat Mat Min Slots Evolved 2 | . . 2 . Power . | . . . . Propulsion . | . . . . Utility 1 | . . 1 . Weapon 1 | . . 1 . Parts Attached 31 | 7 10 3 11 Power 4 | 2 1 . 1 Engine 4 | 2 1 . 1 Core . | . . . . Reactor . | . . . . Propulsion 4 | 2 1 . 1 Treads . | . . . . Leg . | . . . . Wheel 4 | 2 1 . 1 Hover . | . . . . Flight . | . . . . Utility 7 | 1 2 1 3 Device 1 | . . . 1 Storage 3 | 1 2 . . Processor 1 | . . . 1 Hackware . | . . . . Protection 2 | . . 1 1 Artifact . | . . . . Weapon 16 | 2 6 2 6 Energy Gun 12 | 2 3 1 6 Energy Cannon 2 | . 2 . . Ballistic Gun 2 | . 1 1 . Ballistic Cannon . | . . . . Launcher . | . . . . Special Weapon . | . . . . Impact Weapon . | . . . . Slashing Weapon . | . . . . Piercing Weapon . | . . . . Special Melee Weapon . | . . . . Unidentified Prototypes . | . . . . Parts Lost 16 | . 1 . 15 Power 1 | . . . 1 Propulsion 4 | . 1 . 3 Utility 4 | . . . 4 Weapon 7 | . . . 7 Highest Loss Streak 15 | . 1 . 15 To Critical Strikes . | . . . . Average Slot Usage (%) 88 | . 88 85 92 Engine 12 | . 14 11 10 Wheel 22 | . 23 22 20 Storage 17 | . 22 11 11 Processor 1 | . . . 7 Protection 3 | . . 10 9 Energy Gun 19 | . 18 20 20 Energy Cannon 1 | . 1 . . Ballistic Gun 8 | . 6 11 9 Naked Turns . | . . . . Heaviest Build 99 | 13 94 99 99 Greatest Support 32 | 32 32 32 32 Greatest Overweight (x) 5 | . 5 3 3 Average Overweight (x) 2 | . 2 2 2 Largest Inventory Capacity 25 | 8 25 25 25 Average Capacity 23 | 7 24 25 25 Most Carried 25 | 6 17 24 25 Average Carried 15 | 4 11 19 23 Final Capacity 25 | 8 25 25 25 Final Carried 24 | 6 16 24 15 Class Distribution -------------------- 69% | Mutant 16% | Tank 14% | Gunner Dominant Class ---------------- Mutant | -10/Materials Tank | -9/Materials Gunner | -9/Mines Resources | -11 -10 -9 -9 ----------- Run | Yrd Mat Mat Min Matter Collected 474 | 202 188 65 19 Remotely . | . . . . Salvage Created 417 | . 188 120 109 Parts 34 | . 11 11 12 Haulers Intercepted . | . . . . Recyclers Shooed . | . . . . Parts Field Recycled . | . . . . Retrieved Matter . | . . . . Parts Self-Destructed . | . . . . Prevented . | . . . . Kills | -11 -10 -9 -9 ------- Run | Yrd Mat Mat Min Combat Hostiles Destroyed 8 | . 4 2 2 Guns 7 | . 3 2 2 Cannons 1 | . 1 . . Classes Destroyed 4 | . 1 2 1 Watcher 2 | . . 2 . Grunt 5 | . 4 1 . Duelist 1 | . . 1 . Sentry 2 | . . . 2 Best Kill Streak 5 | . 2 3 5 Combat Bots Only 2 | . 2 2 2 Max Kills in Single Turn 1 | . 1 1 1 Gunslinging . | . . . . Exploded . | . . . . Melee . | . . . . Uniques/NPCs Destroyed . | . . . . Combat | -11 -10 -9 -9 -------- Run | Yrd Mat Mat Min Hostile Shots Fired 75 | . 31 4 40 Missed 8 | . 6 1 1 Damage Taken 1738 | . 285 34 1419 Core 408 | . 25 12 371 Absorbed by Shields . | . . . . Core Remaining (%) 95 | 100 90 . . Volleys Fired 40 | . 26 8 6 Largest 3 | . 2 3 3 Hottest 136 | . 136 103 113 Shots Fired 77 | . 39 24 14 Gun 67 | . 29 24 14 Cannon 10 | . 10 . . Launcher . | . . . . Special . | . . . . Kinetic 25 | . 13 8 4 Thermal 15 | . 10 . 5 Explosive . | . . . . Electromagnetic 37 | . 16 16 5 Robot Hit Streak 5 | . 4 4 5 Robot Miss Streak 2 | . 2 2 2 Penetration Max . | . . . . Secondary Targets 1 | . . 1 . Max Gunslinging Chain 1 | . . 1 . Shots Hit Robots 48 | . 23 14 11 Core Hits 20 | . 8 7 5 Critical Kills . | . . . . Critical Parts Destroyed . | . . . . Critical Strikes . | . . . . Melee Attacks . | . . . . Impact . | . . . . Slashing . | . . . . Piercing . | . . . . Sneak Attacks . | . . . . Combat Hostiles . | . . . . Follow-up Attacks . | . . . . Damage Inflicted 771 | . 395 245 131 Guns 585 | . 232 222 131 Cannons 163 | . 163 . . Explosions 23 | . . 23 . Melee . | . . . . Ramming . | . . . . Kinetic 204 | . 80 82 42 Thermal 233 | . 163 23 47 Explosive . | . . . . Electromagnetic 334 | . 152 140 42 Impact . | . . . . Slashing . | . . . . Piercing . | . . . . Highest Corruption . | . . . . Average Corruption . | . . . . Corruption Purged . | . . . . Corruption Blocked . | . . . . Overload Shots . | . . . . Overflow Damage 2 | . 2 . . Projectiles 2 | . 2 . . Explosions . | . . . . Melee . | . . . . Knockbacks . | . . . . Impact . | . . . . Kinetic . | . . . . Secondary . | . . . . Self-Inflicted Damage . | . . . . Shots . | . . . . Rammed . | . . . . Targets Rammed . | . . . . Kicked . | . . . . Crushed . | . . . . Highest Temperature 441 | . 441 256 111 Average Temperature 131 | . 169 108 41 Received Heat Transfer 192 | . 156 18 18 Effects 1 | . 1 . . Shutdowns 1 | . 1 . . Siege Activations . | . . . . Robots Corrupted . | . . . . Combat Hostiles . | . . . . Parts Fried . | . . . . Impact Corruptions . | . . . . Robots Melted . | . . . . Combat Hostiles . | . . . . Parts Melted 1 | . 1 . . Heat Transferred 458 | . 296 50 112 Parts Sabotaged . | . . . . Parts Stolen . | . . . . Parts Stripped . | . . . . Power Chain Reactions 1 | . . 1 . Alert | -11 -10 -9 -9 ------- Run | Yrd Mat Mat Min Peak Influence 105 | . 105 95 91 Initial 36 | . . . 36 Average 38 | . 33 24 74 Maximum Alert Level . | . . . . Low Security (%) 100 | 100 100 100 100 Level 1 . | . . . . Level 2 . | . . . . Level 3 . | . . . . Level 4 . | . . . . Level 5 . | . . . . High Security . | . . . . Max Security . | . . . . Squads Dispatched 2 | . 2 . . Investigation 1 | . 1 . . Extermination . | . . . . Reinforcement 1 | . 1 . . Assault . | . . . . Garrison . | . . . . Intercept . | . . . . Searches Triggered . | . . . . Construction Impeded . | . . . . Haulers Reinforced . | . . . . Active Scanning Responses . | . . . . Cargo Convoy Interrupts . | . . . . Stealth | -11 -10 -9 -9 --------- Run | Yrd Mat Mat Min Distress Signals . | . . . . Communications Jammed . | . . . . Distress Signals . | . . . . Times Spotted 17 | . 9 4 4 Peak Tracking Total 3 | . 3 2 2 Tactical Retreats . | . . . . Traps | -11 -10 -9 -9 ------- Run | Yrd Mat Mat Min Traps Triggered 1 | . 1 . . Indirectly . | . . . . Trap Hack Attempts . | . . . . Triggered . | . . . . Disarmed . | . . . . Reprogrammed . | . . . . Reused . | . . . . Traps Extracted . | . . . . Installed . | . . . . Triggered . | . . . . Machines | -11 -10 -9 -9 ---------- Run | Yrd Mat Mat Min Machines Disabled . | . . . . Max in Single Turn . | . . . . Machines Repaired . | . . . . Machines Dismantled . | . . . . Machines Sabotaged . | . . . . Overloaded Fab Kills . | . . . . Hacking | -11 -10 -9 -9 --------- Run | Yrd Mat Mat Min Machines Accessed 1 | . 1 . . Terminals 1 | . 1 . . Fabricators . | . . . . Repair Stations . | . . . . Recycling Units . | . . . . Scanalyzers . | . . . . Garrison Access . | . . . . Total Hacks 1 | . 1 . . Successful . | . . . . Failed 1 | . 1 . . Catastrophic 1 | . 1 . . Database Lockouts . | . . . . Manual 1 | . 1 . . Terminals 1 | . 1 . . Fabricators . | . . . . Repair Stations . | . . . . Recycling Units . | . . . . Scanalyzers . | . . . . Garrison Access . | . . . . Terminal Hacks . | . . . . Fabricator Hacks . | . . . . Repair Station Hacks . | . . . . Recycling Unit Hacks . | . . . . Scanalyzer . | . . . . Garrison Access Hacks . | . . . . Unauthorized Hacks . | . . . . Terminals . | . . . . Fabricators . | . . . . Repair Stations . | . . . . Recycling Units . | . . . . Scanalyzers . | . . . . Garrison Access . | . . . . Data Cores Recovered . | . . . . Used . | . . . . Hacking Detections . | . . . . Full Trace Events . | . . . . Feedback Events . | . . . . Feedback Blocked . | . . . . Robot Schematics Acquired . | . . . . Robots Built . | . . . . Authchips . | . . . . Time . | . . . . Total Robot Build Rating . | . . . . Part Schematics Acquired . | . . . . Parts Built . | . . . . Authchips . | . . . . Time . | . . . . Total Part Build Rating . | . . . . Parts Repaired . | . . . . Time . | . . . . Parts Recycled . | . . . . Recycled Matter . | . . . . Retrieved Matter . | . . . . Retrieved Components . | . . . . Parts Scanalyzed . | . . . . Part Schematics Acquired . | . . . . Parts Damaged . | . . . . Bothacking | -11 -10 -9 -9 ------------ Run | Yrd Mat Mat Min Used RIF Installer . | . . . . Robots Hacked . | . . . . Non-combat . | . . . . Combat . | . . . . Robot Hacks Applied . | . . . . Relay Couplers Released . | . . . . Fabnet Peak Effective % . | . . . . Robots Rewired . | . . . . Allies Hacked . | . . . . Hacks Repelled . | . . . . Allies | -11 -10 -9 -9 -------- Run | Yrd Mat Mat Min Total Allies . | . . . . Largest Group . | . . . . Highest-Rated Group . | . . . . Highest-Rated Ally . | . . . . Total Orders . | . . . . Ally Attacks . | . . . . Total Damage . | . . . . Kills . | . . . . Allies Corrupted . | . . . . Allies Melted . | . . . . Intel | -11 -10 -9 -9 ------- Run | Yrd Mat Mat Min Robot Analysis Total . | . . . . Derelict Logs Recovered 1 | . . . 1 Drone Launches . | . . . . Drone Recoveries . | . . . . Exploration | -11 -10 -9 -9 ------------- Run | Yrd Mat Mat Min Turns Passed 935 | 78 515 130 212 Spaces Moved 525 | 58 285 65 117 Core 1 | 1 . . . Treads . | . . . . Legs . | . . . . Wheels 524 | 57 285 65 117 Hover . | . . . . Flight . | . . . . Fastest Speed 50 | 50 100 130 130 Average Speed 136 | 99 140 142 143 Slowest Speed 175 | 100 175 145 145 Overloaded Moves . | . . . . Propulsion Burnouts . | . . . . Robots Hopped . | . . . . Cave-ins Triggered . | . . . . Exploration Rate (%) 21 | 4 39 12 30 Regions Visited 3 Branch Regions 1 Pre-discovered Areas . | . . . . Known Exits Taken . | . . . . Unknown Exits Taken 3 | 1 1 1 . Scrap Searched 1 | . . . 1 Spaces Dug . | . . . . Terrain Destroyed 1 | . . 1 . Melee . | . . . . Projectile . | . . . . AOE 1 | . . 1 . Terrain Rammed . | . . . . Walls Destroyed . | . . . . Machines Disabled . | . . . . Actions | -11 -10 -9 -9 --------- Run | Yrd Mat Mat Min Total 670 | 75 361 84 150 Wait 33 | 5 20 . 8 Move 522 | 57 284 64 117 Hop . | . . . . Pick Up 29 | 6 10 8 5 Fast Attach 14 | 5 7 2 . Attach 14 | 1 1 1 11 Detach 5 | . 4 1 . Swap 3 | 1 2 . . Drop 10 | . 7 . 3 Fire 40 | . 26 8 6 Melee . | . . . . Ram . | . . . . Kick . | . . . . Crush . | . . . . Escape Stasis . | . . . . Rewire . | . . . . Trap . | . . . . Miscellaneous . | . . . . Route ------- -11/Scrapyard -10/Materials -9/Materials -9/Mines History --------- Turn | Location | Event 23 | -11/Scrapyard | Discovered new exit (range 16) 79 | -11/Scrapyard | Entered Materials 305 | -10/Materials | Build established: Mutant 576 | -10/Materials | Discovered new exit (range 6) 594 | -10/Materials | Entered another Materials area 594 | -9/Materials | Evolved 2 slots: Utility x1, Weapon x1 683 | -9/Materials | Discovered new exit (range 15) 724 | -9/Materials | Entered Mines 846 | -9/Mines | Learned Materials terminal intel 858 | -9/Mines | Assembled infested the area 911 | -9/Mines | Core integrity fell below 50% 915 | -9/Mines | Core integrity fell below 20% 936 | -9/Mines | Self-destructed Last Messages --------------- U-05 Engineer lays Concrete. The unstable cave ceiling collapses. K-01 Serf collects debris. The unstable cave ceiling collapses. EM Shotgun destroyed. U-05 Engineer lays Concrete. The unstable cave ceiling collapses. Weight Redist. System destroyed. U-05 Engineer builds a Wall. U-05 Engineer lays Concrete. The unstable cave ceiling collapses. U-05 Engineer lays Concrete. K-01 Serf collects debris. The unstable cave ceiling collapses. U-05 Engineer lays Concrete. Com. Wheel destroyed. T-07 Excavator destroyed. U-05 Engineer lays Concrete. U-05 Engineer builds a Wall. The unstable cave ceiling collapses. Map ----- +----------------------------------------------------+ | ????????????????????????????????# ####### # | | ????????????????????????????????# ##?# # | | ???????????????????????????????## ########### | | ???????????????????????????????# #????????? | | ???????????????????????????????# ##???????? | | ???????????????????????????????# " ##??????? | | ???????????????????????????????# %" ##?????? | | ???????????????????????????????## " #?????? | | ????????????????????????????????# #?????? | | ????????????????????????????????## ##?#### | | ?????????????????????????????????# """ ## # | | ????????????????? ??????########## """ | | ?????????????????# ?????# """ | | ?????????????????# ????# | | ????????????????## ????# #### # | | ???????????????## ???# #??# ### ## | | ???????????????# ???# ##### ##?## #? | | ???????????????# #?## ## # ##??## # | | ????????????????# ## # ###??# | | ?????????????????# t # # k ### | | ?????????????????## # u## | | ??????????????????### # | | ???????????????????# ## u | | ???????????????????# d ## | | ??????????????????## d ## ##?# | | ??????????????????# @ ######??? | | ??????????????????# #???????? | | ??????????????????# # # #???????? | | ??????????????????# # |#### #?????????## | | ??????????????????# # ###???????????# | | ??????????????????# # # ########?????????????? | | ??????????????????## #### ????????????????????? | | ??????????????????##????? ???????????????????? | | ???????????????????????? #??????????????????? | | ???????????????????????## #??????????????????? | | ????????????????????????## #??????????????????? | | ?????????????????????????# #??????????????????? | | ?????????????????????????## ##??????????????????? | | ??????????????????????????? #???????????????????? | | ??????????????????????????? #???????????????????? | | ??????????????????????????? ????????????????????? | | ?????????????????????????????????????????????????? | | ?????????????????????????????????????????????????? | | ?????????????????????????????????????????????????? | | ?????????????????????????????????????????????????? | | ?????????????????????????????????????????????????? | | ?????????????????????????????????????????????????? | | ?????????????????????????????????????????????????? | | ?????????????????????????????????????????????????? | | ?????????????????????????????????????????????????? | +----------------------------------------------------+ Best States ------------- Heat Dissipation 28 Energy Generation 12 Energy Capacity 265 Matter Stores 302 Matter Capacity 350 Sight Range 16 Terrain Scan Density 10 Additional Mass Support 6 Armor Coverage 150 Evasion (%) 40 Targeting Accuracy 6 Item Schematics ----------------- None Robot Schematics ------------------ None Fabricated ------------ Nothing Alien Tech Used ----------------- None Achievements -------------- None Challenges ------------ None Game ------ Seed MappingGreatCanceller Manual? 0 Play Time 00:14:30 Cumulative 9.5 hours Start 2024.04.04 @ 16:07:41 End 2024.04.04 @ 16:19:46 Sessions 1 Manual Loads 0 Difficulty Rogue Special Mode None Game No. 15 Rogue 15 Adventurer 0 Explorer 0 Win Type - Total 0 Types 0/0/0/0/0/0/0/0/0 Lore% 3 Gallery% 19 Achievement% 13 Wizard Run 0 Options --------- Layout 1 ASCII 0 Keyboard 0 Movement Mouse Keybinds 0 Fullscreen 1 Font 24/Smallcaps Map View 50x35 Zoom Use 0% Tactical HUD 0 Map Filters NONE Filters NONE Steam 1 RUN: 76300a1a-5f6b-4a88-a29a-bd5e32dbf645